Workbook

Sheet Instructions
A1: Instructions
A2: DISCLAIMER: This tool is made available by ERCOT and is intended for educational purposes only. It should not be relied upon for the purpose of directing market participant behavior or developing market strategies. Support for the tool is limited and ERCOT is not responsible for outcomes arising from use of the tool beyond its intended purpose. Users should always refer to published materials from the RTC+B Task Force and approved governing documents, which may evolve separately from the development of this tool.
A4: Overview
A5: Sheet | B5: Description
A6: Instructions | B6: This sheet!
A7: System | B7: Contains the inputs to the system (i.e. Resource, Line, and Load parameters), a one-line of the system, as well as the output of the SCED optimization. This is the main sheet where you will change system inputs to produce the different conditions required for each of the different scenarios.
A8: Optimization Engine | B8: Contains the formulation of the Linear Programming problem used to model and solve the SCED problem. There will be a few things on this sheet you will be required to use to answer some of the questions but it will all be locked from editing.
A9: Answer Report | B9: Details the results from the Simplex LP optimization problem, including the variable values, and objective function.
A10: Sensitivity Report | B10: Details the results from the Simplex LP optimization problem, including the shadow prices for each of the constraints.
A12: How to Run
A13: 1 | B13: On the 'System' sheet, enter in your desired system parameters in the 'Inputs' section
A14: 2 | B14: On the 'System' sheet, click 'Run SCED'
A15: 3 | B15: Results will update automatically in both the 'System' sheet and the 'Optimization Engine' sheet from both the 'Answer Report' and 'Sensitivity Report' sheets
A16: Notes
A17: 1 | B17: Do not edit or change the text of any cell outside the 'Inputs' section on the 'System' sheet
A18: 2 | B18: The password to any protected sheet is 'ercot123' but keep in mind the protection is there to keep the problem from being broken.
A19: 3 | B19: Make sure the proper References are added to the sheet prior to running, as seen in the figure below. To get to the VBA screen for Excel, hit Alt + F11. Once there, click Tools, then References… and it will open a References screen. Ensure 'Solver' is selected. This is Excels Optimization Solver tool that will be used to solve the Linear Programming optimization problem.
A21: Assumptions and Deviation from RTC
A22: 1 | B22: System magnitude is lessened (5 gens, 3 loads). AS plan is reduced. AS demand curves try to mimic the shape and magnitudes of curves using techniques described in RTC key principles.
A23: 2 | B23: AS Demand curves are blocky step functions rather than step-wise linear. Excel simplex solver requires linearity, and step-wise demand curves require a quadratic solver.
A24: 3 | B24: This tool doesn't demonstrate handling CC configurations. RTC will handle with mixed integer optimization.
A25: 4 | B25: Assume that HDL = HSL and LDL = LSL. In RTC, these may be different.

Sheet System
B1: RTC Simulator Tool
C4: I N P U T S
G5: Resource Data
I6: Offers ($/MWh) | N6: Limits (MW)
G7: Resource | H7: Bus | I7: Energy | J7: REGUP | K7: RRS | L7: ECRS | M7: NSPIN | N7: AS Qty | O7: LSL | P7: HSL
G8: G1 | H8: A | I8: 14 | J8: 0 | K8: 20 | L8: 0 | M8: 0 | N8: 20 | O8: 0 | P8: 110
G9: G2 | H9: A | I9: 15 | J9: 0 | K9: 20 | L9: 0 | M9: 0 | N9: 20 | O9: 0 | P9: 100 | V9: .
G10: G3 | H10: C | I10: 30 | J10: 0 | K10: 0 | L10: 0 | M10: 0 | N10: 0 | O10: 0 | P10: 520
G11: G4 | H11: D | I11: 29 | J11: 0 | K11: 20 | L11: 0 | M11: 0 | N11: 20 | O11: 0 | P11: 200
G12: G5 | H12: E | I12: 10 | J12: 0 | K12: 20 | L12: 0 | M12: 0 | N12: 20 | O12: 0 | P12: 400
G13: L1 | H13: E | I13: 10 | J13: 0 | K13: 0 | L13: 0 | M13: 0 | N13: 0 | O13: 0 | P13: 0
O14: TOTAL | P14: =SUM(P8:P13) -> 1330
F15: Load Data | K15: Line Data | P15: AS Plan
F16: Load | G16: Bus | H16: Load | K16: Line | L16: Limit* | M16: Max Shadow | P16: AS Type | Q16: Amount
F17: AUS | G17: B | H17: 300 | K17: L1 | L17: 1000 | M17: 4500 | P17: REGUP | Q17: 0
F18: HOU | G18: C | H18: 300 | K18: L2 | L18: 1000 | M18: 4500 | P18: RRS | Q18: 0
F19: DFW | G19: D | H19: 500 | K19: L3 | L19: 1000 | M19: 4500 | P19: ECRS | Q19: 0
G20: TOTAL | H20: =SUM(H17:H19) -> 1100 | K20: L4 | L20: 1000 | M20: 4500 | P20: NSPIN | Q20: 0
G21: Load + AS Plan | H21: =H20+Q21 -> 1100 | K21: L5 | L21: 1000 | M21: 4500 | P21: TOTAL | Q21: =SUM(Q17:Q20) -> 0
K22: L6 | L22: 1000 | M22: 4500
B25: S Y S T E M
C29: L1
C31: BP: | D31: ='Optimization Engine'!F26 -> 0
C32: REGUP: | D32: ='Optimization Engine'!N26 -> 0
C33: RRS: | D33: ='Optimization Engine'!S26 -> 0
C34: ECRS: | D34: ='Optimization Engine'!X26 -> 0
C35: NSPIN: | D35: ='Optimization Engine'!AC26 -> 0 | U35: G4
F36: Bus E | Q36: Bus D
F37: LMP: | G37: ='Optimization Engine'!Q58 -> 30 | L37: Line 5 | Q37: LMP: | R37: ='Optimization Engine'!Q57 -> 30 | U37: BP: | V37: ='Optimization Engine'!F24 -> 200
L38: Flow: | M38: =ABS(Line_5_Flow) -> 204.0353206 | U38: REGUP: | V38: ='Optimization Engine'!N24 -> 0
U39: RRS: | V39: ='Optimization Engine'!S24 -> 0
U40: ECRS: | V40: ='Optimization Engine'!X24 -> 0
C41: G5 | U41: NSPIN: | V41: ='Optimization Engine'!AC24 -> 0
L42: Line 2
C43: BP: | D43: ='Optimization Engine'!F25 -> 400 | L43: Flow: | M43: =ABS(Line_2_Flow) -> 158.0814169
C44: REGUP: | D44: ='Optimization Engine'!N25 -> 0
C45: RRS: | D45: ='Optimization Engine'!S25 -> 0 | T45: Dallas/Ft. Worth
C46: ECRS: | D46: ='Optimization Engine'!X25 -> 0 | E46: Line 6 | T46: MW: | U46: ='Optimization Engine'!C15 -> 500
C47: NSPIN: | D47: ='Optimization Engine'!AC25 -> 0 | E47: Flow: | F47: =ABS(Line_6_Flow) -> 195.9646794
R48: Line 4
R49: Flow: | S49: =ABS(Line_4_Flow) -> 62.11673746
D50: Bus A
D51: LMP: | E51: ='Optimization Engine'!Q54 -> 30 | J51: Line 1 | N51: Line 3
J52: Flow: | K52: =ABS(Line_1_Flow) -> 247.8832625 | N52: Flow: | O52: =ABS(Line_3_Flow) -> 52.11673746
K54: Bus B | O54: Bus C
K55: LMP: | L55: ='Optimization Engine'!Q55 -> 30 | O55: LMP: | P55: ='Optimization Engine'!Q56 -> 30 | S55: G3
E56: G2 | H56: G1
S57: BP: | T57: ='Optimization Engine'!F23 -> 290
E58: BP: | F58: ='Optimization Engine'!F22 -> 100 | H58: BP: | I58: ='Optimization Engine'!F21 -> 110 | S58: REGUP: | T58: ='Optimization Engine'!N23 -> 0
E59: REGUP: | F59: ='Optimization Engine'!N22 -> 0 | H59: REGUP: | I59: ='Optimization Engine'!N21 -> 0 | S59: RRS: | T59: ='Optimization Engine'!S23 -> 0
E60: RRS: | F60: ='Optimization Engine'!S22 -> 0 | H60: RRS: | I60: ='Optimization Engine'!S21 -> 0 | S60: ECRS: | T60: ='Optimization Engine'!X23 -> 0
E61: ECRS: | F61: ='Optimization Engine'!X22 -> 0 | H61: ECRS: | I61: ='Optimization Engine'!X21 -> 0 | K61: Austin/San Antonio | O61: Houston | S61: NSPIN: | T61: ='Optimization Engine'!AC23 -> 0
E62: NSPIN: | F62: ='Optimization Engine'!AC22 -> 0 | H62: NSPIN: | I62: ='Optimization Engine'!AC21 -> 0 | K62: MW: | L62: ='Optimization Engine'!C13 -> 300 | O62: MW: | P62: ='Optimization Engine'!C14 -> 300
E66: R E P O R T
H68: Gen Data
G69: Resource | H69: Bus | I69: LSL | J69: HSL | K69: BP | L69: REGUP | M69: RRS | N69: ECRS | O69: NSPIN | P69: LMP | Q69: Operating Cost
G70: G1 | H70: A | I70: ='Optimization Engine'!D21 -> 0 | J70: ='Optimization Engine'!E21 -> 110 | K70: ='Optimization Engine'!F21 -> 110 | L70: ='Optimization Engine'!N21 -> 0 | M70: ='Optimization Engine'!S21 -> 0 | N70: ='Optimization Engine'!X21 -> 0 | O70: ='Optimization Engine'!AC21 -> 0 | P70: ='Optimization Engine'!Q54 -> 30 | Q70: ='Optimization Engine'!G21 -> 1540
G71: G2 | H71: A | I71: ='Optimization Engine'!D22 -> 0 | J71: ='Optimization Engine'!E22 -> 100 | K71: ='Optimization Engine'!F22 -> 100 | L71: ='Optimization Engine'!N22 -> 0 | M71: ='Optimization Engine'!S22 -> 0 | N71: ='Optimization Engine'!X22 -> 0 | O71: ='Optimization Engine'!AC22 -> 0 | P71: ='Optimization Engine'!Q54 -> 30 | Q71: ='Optimization Engine'!G22 -> 1500
G72: G3 | H72: C | I72: ='Optimization Engine'!D23 -> 0 | J72: ='Optimization Engine'!E23 -> 520 | K72: ='Optimization Engine'!F23 -> 290 | L72: ='Optimization Engine'!N23 -> 0 | M72: ='Optimization Engine'!S23 -> 0 | N72: ='Optimization Engine'!X23 -> 0 | O72: ='Optimization Engine'!AC23 -> 0 | P72: ='Optimization Engine'!Q56 -> 30 | Q72: ='Optimization Engine'!G23 -> 8700
G73: G4 | H73: D | I73: ='Optimization Engine'!D24 -> 0 | J73: ='Optimization Engine'!E24 -> 200 | K73: ='Optimization Engine'!F24 -> 200 | L73: ='Optimization Engine'!N24 -> 0 | M73: ='Optimization Engine'!S24 -> 0 | N73: ='Optimization Engine'!X24 -> 0 | O73: ='Optimization Engine'!AC24 -> 0 | P73: ='Optimization Engine'!Q57 -> 30 | Q73: ='Optimization Engine'!G24 -> 5800
G74: G5 | H74: E | I74: ='Optimization Engine'!D25 -> 0 | J74: ='Optimization Engine'!E25 -> 400 | K74: ='Optimization Engine'!F25 -> 400 | L74: ='Optimization Engine'!N25 -> 0 | M74: ='Optimization Engine'!S25 -> 0 | N74: ='Optimization Engine'!X25 -> 0 | O74: ='Optimization Engine'!AC25 -> 0 | P74: ='Optimization Engine'!Q58 -> 30 | Q74: ='Optimization Engine'!G25 -> 4000
G75: L1 | H75: E | I75: ='Optimization Engine'!D26 -> 0 | J75: ='Optimization Engine'!E26 -> 0 | K75: ='Optimization Engine'!F26 -> 0 | L75: ='Optimization Engine'!N26 -> 0 | M75: ='Optimization Engine'!S26 -> 0 | N75: ='Optimization Engine'!X26 -> 0 | O75: ='Optimization Engine'!AC26 -> 0 | P75: ='Optimization Engine'!Q58 -> 30 | Q75: ='Optimization Engine'!G26 -> 0
G76: Total | I76: =SUM(I70:I75) -> 0 | J76: 1330 | K76: 1100 | L76: 0 | M76: 0 | N76: 0 | O76: 0 | Q76: =SUM(Q70:Q75) -> 21540
G78: System Data | P78: Ancillary Service Data
H79: Total Base Points: | I79: =SUM(K70:K75) -> 1100 | K79: System Lambda: | L79: ='Optimization Engine'!F37 -> 30 | P79: AS Type | Q79: MCPC ($/MWh)
H80: PB Violation: | I80: ='Optimization Engine'!C32 -> 0 | K80: Objective Function | L80: ='Optimization Engine'!C40 -> 21540 | P80: REGUP | Q80: ='Optimization Engine'!J34 -> 1
H81: Total Load: | I81: ='Optimization Engine'!C16 -> 1100 | P81: RRS | Q81: ='Optimization Engine'!J35 -> 1
P82: ECRS | Q82: ='Optimization Engine'!J36 -> 1
P83: NSPIN | Q83: ='Optimization Engine'!J37 -> 1
G87: Line & Constraint Data | P87: Bus/LMP Data
G88: Line | H88: From Bus | I88: To Bus | J88: Limit | K88: Flow | L88: Violation | M88: Shadow Price | N88: Binding? | P88: Bus | Q88: LMP ($/MWh)
G89: L1 | H89: A | I89: B | J89: ='Optimization Engine'!I4 -> 1000 | K89: ='Optimization Engine'!J47 -> 247.8832625 | L89: ='Optimization Engine'!H47 -> 0 | M89: ='Optimization Engine'!M47 -> 0 | N89: =IF(M89>0,"YES","NO") -> NO | P89: A | Q89: ='Optimization Engine'!Q54 -> 30
G90: L2 | H90: A | I90: D | J90: ='Optimization Engine'!I5 -> 1000 | K90: ='Optimization Engine'!J48 -> 158.0814169 | L90: ='Optimization Engine'!H48 -> 0 | M90: ='Optimization Engine'!M48 -> 0 | N90: NO | P90: B | Q90: ='Optimization Engine'!Q55 -> 30
G91: L3 | H91: B | I91: C | J91: ='Optimization Engine'!I6 -> 1000 | K91: ='Optimization Engine'!J49 -> -52.11673746 | L91: ='Optimization Engine'!H49 -> 0 | M91: ='Optimization Engine'!M49 -> 0 | N91: NO | P91: C | Q91: ='Optimization Engine'!Q56 -> 30
G92: L4 | H92: C | I92: D | J92: ='Optimization Engine'!I7 -> 1000 | K92: ='Optimization Engine'!J50 -> -62.11673746 | L92: ='Optimization Engine'!H50 -> 0 | M92: ='Optimization Engine'!M50 -> 0 | N92: NO | P92: D | Q92: ='Optimization Engine'!Q57 -> 30
G93: L5 | H93: D | I93: E | J93: ='Optimization Engine'!I8 -> 1000 | K93: ='Optimization Engine'!J51 -> -204.0353206 | L93: ='Optimization Engine'!H51 -> 0 | M93: ='Optimization Engine'!M51 -> 0 | N93: NO | P93: E | Q93: ='Optimization Engine'!Q58 -> 30
G94: L6 | H94: E | I94: A | J94: ='Optimization Engine'!I9 -> 1000 | K94: ='Optimization Engine'!J52 -> 195.9646794 | L94: ='Optimization Engine'!H52 -> 0 | M94: ='Optimization Engine'!M52 -> 0 | N94: NO
G95: L1 | H95: B | I95: A | J95: ='Optimization Engine'!I4 -> 1000 | K95: ='Optimization Engine'!J53 -> -247.8832625 | L95: ='Optimization Engine'!H53 -> 0 | M95: ='Optimization Engine'!M53 -> 0 | N95: NO
G96: L2 | H96: D | I96: A | J96: ='Optimization Engine'!I5 -> 1000 | K96: ='Optimization Engine'!J54 -> -158.0814169 | L96: ='Optimization Engine'!H54 -> 0 | M96: ='Optimization Engine'!M54 -> 0 | N96: NO
G97: L3 | H97: C | I97: B | J97: ='Optimization Engine'!I6 -> 1000 | K97: ='Optimization Engine'!J55 -> 52.11673746 | L97: ='Optimization Engine'!H55 -> 0 | M97: ='Optimization Engine'!M55 -> 0 | N97: NO
G98: L4 | H98: D | I98: C | J98: ='Optimization Engine'!I7 -> 1000 | K98: ='Optimization Engine'!J56 -> 62.11673746 | L98: ='Optimization Engine'!H56 -> 0 | M98: ='Optimization Engine'!M56 -> 0 | N98: NO
G99: L5 | H99: E | I99: D | J99: ='Optimization Engine'!I8 -> 1000 | K99: ='Optimization Engine'!J57 -> 204.0353206 | L99: ='Optimization Engine'!H57 -> 0 | M99: ='Optimization Engine'!M57 -> 0 | N99: NO
G100: L6 | H100: A | I100: E | J100: ='Optimization Engine'!I9 -> 1000 | K100: ='Optimization Engine'!J58 -> -195.9646794 | L100: ='Optimization Engine'!H58 -> 0 | M100: ='Optimization Engine'!M58 -> 0 | N100: NO

Sheet Optimization Engine
A1: Objective Function | B1: Decision Variable | C1: User Input | D1: Parameter
A2: Shift Factor Matrix/Line Data | L2: Original Shift Factor Matrix (w/ A as Slack Bus) | V2: Load Distributed Shift Factor Matrix
B3: A | C3: B | D3: C | E3: D | F3: E | H3: Line | I3: Limit | J3: Flow | M3: A | N3: B | O3: C | P3: D | Q3: E | S3: Load*SF | T3: SFC | W3: A | X3: B | Y3: C | Z3: D | AA3: E
A4: L1 | B4: =W4 -> 0.4140200787 | C4: =X4 -> -0.2480120424 | D4: =Y4 -> -0.1225806646 | E4: 0.2223556242 | F4: 0.3800407848 | H4: L1 | I4: =System!L17 -> 1000 | J4: =MMULT(B4:F9,TRANSPOSE(B44:F44)) -> 247.8832625 | L4: L1 | M4: 0 | N4: -0.6620321211 | O4: -0.5366007433 | P4: -0.1916644545 | Q4: -0.03397929387 | S4: =MMULT(M4:Q9,TRANSPOSE(M13:Q13)) -> -455.4220865 | T4: =S4/SUM($M$13:$Q$13) -> -0.4140200787 | V4: L1 | W4: =M4-$T4 -> 0.4140200787 | X4: =N4-$T4 -> -0.2480120424 | Y4: -0.1225806646 | Z4: 0.2223556242 | AA4: 0.3800407848
A5: L2 | B5: =W5 -> 0.3181033859 | C5: 0.1346351087 | D5: 0.06654378937 | E5: -0.1207073389 | F5: 0.2403086867 | H5: L2 | I5: =System!L18 -> 1000 | J5: 158.0814169 | L5: L2 | M5: 0 | N5: -0.1834682771 | O5: -0.2515595965 | P5: -0.4388107247 | Q5: -0.07779469912 | S5: -349.9137244 | T5: =S5/SUM($M$13:$Q$13) -> -0.3181033859 | V5: L2 | W5: 0.3181033859 | X5: 0.1346351087 | Y5: 0.06654378937 | Z5: -0.1207073389 | AA5: 0.2403086867
A6: L3 | B6: 0.1412928059 | C6: 0.4792606849 | D6: -0.3953079374 | E6: -0.05037164853 | F6: 0.1073135121 | H6: L3 | I6: =System!L19 -> 1000 | J6: -52.11673746 | L6: L3 | M6: 0 | N6: 0.3379678789 | O6: -0.5366007433 | P6: -0.1916644545 | Q6: -0.03397929387 | S6: -155.4220865 | T6: -0.1412928059 | V6: L3 | W6: 0.1412928059 | X6: 0.4792606849 | Y6: -0.3953079374 | Z6: -0.05037164853 | AA6: 0.1073135121
A7: L4 | B7: -0.1314344668 | C7: 0.2065334122 | D7: 0.3319647899 | E7: -0.3230989213 | F7: -0.1654137606 | H7: L4 | I7: =System!L20 -> 1000 | J7: -62.11673746 | L7: L4 | M7: 0 | N7: 0.3379678789 | O7: 0.4633992567 | P7: -0.1916644545 | Q7: -0.03397929387 | S7: 144.5779135 | T7: 0.1314344668 | V7: L4 | W7: -0.1314344668 | X7: 0.2065334122 | Y7: 0.3319647899 | Z7: -0.3230989213 | AA7: -0.1654137606
A8: L5 | B8: -0.2678765355 | C8: -0.1133769337 | D8: -0.05603687526 | E8: 0.1016482853 | F8: -0.3796505284 | H8: L5 | I8: =System!L21 -> 1000 | J8: -204.0353206 | L8: L5 | M8: 0 | N8: 0.1544996018 | O8: 0.2118396602 | P8: 0.3695248208 | Q8: -0.111773993 | S8: 294.664189 | T8: 0.2678765355 | V8: L5 | W8: -0.2678765355 | X8: -0.1133769337 | Y8: -0.05603687526 | Z8: 0.1016482853 | AA8: -0.3796505284
A9: L6 | B9: -0.2678765355 | C9: -0.1133769337 | D9: -0.05603687526 | E9: 0.1016482853 | F9: 0.6203494716 | H9: L6 | I9: =System!L22 -> 1000 | J9: 195.9646794 | L9: L6 | M9: 0 | N9: 0.1544996018 | O9: 0.2118396602 | P9: 0.3695248208 | Q9: 0.888226007 | S9: 294.664189 | T9: 0.2678765355 | V9: L6 | W9: -0.2678765355 | X9: -0.1133769337 | Y9: -0.05603687526 | Z9: 0.1016482853 | AA9: 0.6203494716
A11: Load Data | E11: AS Requirement | L11: Load Injection Array
A12: Load | B12: Bus | C12: Load | E12: REGUP | F12: =System!Q17 -> 0 | L12: Bus | M12: A | N12: B | O12: C | P12: D | Q12: E
A13: AUS | B13: B | C13: =System!H17 -> 300 | E13: RRS | F13: =System!Q18 -> 0 | L13: Bus Injection | M13: =0 -> 0 | N13: =C13 -> 300 | O13: =C14 -> 300 | P13: =C15 -> 500 | Q13: =0 -> 0
A14: HOU | B14: C | C14: =System!H18 -> 300 | E14: ECRS | F14: =System!Q19 -> 0
A15: DFW | B15: D | C15: =System!H19 -> 500 | E15: NSPIN | F15: =System!Q20 -> 0
B16: Sum | C16: =SUM(C13:C15) -> 1100
A18: Resource Data | C18: Energy | I18: Energy + AS Award | L18: REGUP | Q18: RRS | V18: ECRS | AA18: NSPIN
C19: Offers ($/MW) | D19: Limits (MW) | F19: Award (MW) | G19: Cost | L19: Offers ($/MW) | M19: Offer QTY | N19: Award (MW) | O19: Cost | Q19: Offers ($/MW) | R19: Offer QTY | S19: Award (MW) | T19: Cost | V19: Offers ($/MW) | W19: Offer QTY | X19: Award (MW) | Y19: Cost | AA19: Offers ($/MW) | AB19: Offer QTY | AC19: Award (MW) | AD19: Cost
A20: Resource | B20: Bus | D20: LSL | E20: HSL | AF20: Offer QTY | AG20: Total Award
A21: G1 | B21: A | C21: =System!I8 -> 14 | D21: =System!O8 -> 0 | E21: =System!P8 -> 110 | F21: 110 | G21: =F21*C21 -> 1540 | I21: =F21+N21+S21+X21+AC21 -> 110 | L21: =System!J8 -> 0 | M21: =System!N8 -> 20 | N21: 0 | O21: =N21*L21 -> 0 | Q21: =System!K8 -> 20 | R21: =System!N8 -> 20 | S21: 0 | T21: =S21*Q21 -> 0 | V21: =System!L8 -> 0 | W21: =System!N8 -> 20 | X21: 0 | Y21: =X21*V21 -> 0 | AA21: =System!M8 -> 0 | AB21: =System!N8 -> 20 | AC21: 0 | AD21: =AC21*AA21 -> 0 | AF21: =System!N8 -> 20 | AG21: =N21+S21+X21+AC21 -> 0 | HK21: 0 | HL21: 0
A22: G2 | B22: A | C22: =System!I9 -> 15 | D22: =System!O9 -> 0 | E22: =System!P9 -> 100 | F22: 100 | G22: 1500 | I22: =F22+N22+S22+X22+AC22 -> 100 | L22: =System!J9 -> 0 | M22: =System!N9 -> 20 | N22: 0 | O22: 0 | Q22: =System!K9 -> 20 | R22: =System!N9 -> 20 | S22: 0 | T22: 0 | V22: =System!L9 -> 0 | W22: =System!N9 -> 20 | X22: 0 | Y22: 0 | AA22: =System!M9 -> 0 | AB22: =System!N9 -> 20 | AC22: 0 | AD22: 0 | AF22: =System!N9 -> 20 | AG22: =N22+S22+X22+AC22 -> 0 | HK22: 0 | HL22: 0
A23: G3 | B23: C | C23: =System!I10 -> 30 | D23: =System!O10 -> 0 | E23: =System!P10 -> 520 | F23: 290 | G23: 8700 | I23: 290 | L23: =System!J10 -> 0 | M23: =System!N10 -> 0 | N23: 0 | O23: 0 | Q23: =System!K10 -> 0 | R23: =System!N10 -> 0 | S23: 0 | T23: =S23*Q23 -> 0 | V23: =System!L10 -> 0 | W23: =System!N10 -> 0 | X23: 0 | Y23: 0 | AA23: =System!M10 -> 0 | AB23: =System!N10 -> 0 | AC23: 0 | AD23: 0 | AF23: =System!N10 -> 0 | AG23: 0 | HK23: 0 | HL23: 0
A24: G4 | B24: D | C24: =System!I11 -> 29 | D24: =System!O11 -> 0 | E24: =System!P11 -> 200 | F24: 200 | G24: 5800 | I24: 200 | L24: =System!J11 -> 0 | M24: =System!N11 -> 20 | N24: 0 | O24: 0 | Q24: =System!K11 -> 20 | R24: =System!N11 -> 20 | S24: 0 | T24: 0 | V24: =System!L11 -> 0 | W24: =System!N11 -> 20 | X24: 0 | Y24: 0 | AA24: =System!M11 -> 0 | AB24: =System!N11 -> 20 | AC24: 0 | AD24: 0 | AF24: =System!N11 -> 20 | AG24: 0 | HK24: 0 | HL24: 0
A25: G5 | B25: E | C25: =System!I12 -> 10 | D25: =System!O12 -> 0 | E25: =System!P12 -> 400 | F25: 400 | G25: 4000 | I25: 400 | L25: =System!J12 -> 0 | M25: =System!N12 -> 20 | N25: 0 | O25: 0 | Q25: =System!K12 -> 20 | R25: =System!N12 -> 20 | S25: 0 | T25: 0 | V25: =System!L12 -> 0 | W25: =System!N12 -> 20 | X25: 0 | Y25: 0 | AA25: =System!M12 -> 0 | AB25: =System!N12 -> 20 | AC25: 0 | AD25: 0 | AF25: =System!N12 -> 20 | AG25: 0 | HK25: 0 | HL25: 0
A26: L1 | B26: E | C26: =System!I13 -> 10 | D26: =System!O13 -> 0 | E26: =System!P13 -> 0 | F26: 0 | G26: 0 | I26: =F26+N26+S26+X26+AC26 -> 0 | L26: =System!J13 -> 0 | M26: =System!N13 -> 0 | N26: 0 | O26: 0 | Q26: =System!K13 -> 0 | R26: =System!N13 -> 0 | S26: 0 | T26: 0 | V26: =System!L13 -> 0 | W26: =System!N13 -> 0 | X26: 0 | Y26: 0 | AA26: =System!M13 -> 0 | AB26: =System!N13 -> 0 | AC26: 0 | AD26: 0 | AF26: =System!N13 -> 0 | AG26: 0
A27: 0 | B27: 0 | E27: Sum: | F27: =SUM(F21:F26) -> 1100 | G27: =SUM(G21:G26) -> 21540 | M27: Totals: | N27: =SUM(N21:N26) -> 0 | O27: =SUM(O21:O26) -> 0 | R27: Totals: | S27: =SUM(S21:S26) -> 0 | T27: =SUM(T21:T26) -> 0 | W27: Totals: | X27: =SUM(X21:X26) -> 0 | Y27: =SUM(Y21:Y26) -> 0 | AB27: Totals: | AC27: =SUM(AC21:AC26) -> 0 | AD27: =SUM(AD21:AD26) -> 0
E28: Sum + PBPC: | F28: =F27+C32 -> 1100 | M28: 0 | N28: 0 | R28: 0 | S28: 0 | W28: 0 | X28: 0 | AB28: 0 | AC28: 0
M29: 0 | N29: 0 | R29: 0 | S29: 0 | W29: 0 | X29: 0 | AB29: 0 | AC29: 0
A30: Power Balance Penalty Curve | L30: REGUP ASDC Benefit | Q30: RRS ASDC Benefit | V30: ECRS ASDC Benefit | AA30: NSPIN ASDC Benefit
A31: LSL | B31: HSL | C31: BP | D31: Penalty Value ($/MWh) | L31: Price | M31: QTY | N31: Award (MW) | O31: Benefit | Q31: Price | R31: QTY | S31: Award (MW) | T31: Benefit | V31: Price | W31: QTY | X31: Award (MW) | Y31: Benefit | AA31: Price | AB31: QTY | AC31: Award (MW) | AD31: Benefit
A32: 0 | B32: 99999 | C32: 0 | D32: 7000.01 | E32: =C32*D32 -> 0
J33: MCPC | L33: 5000 | M33: =$S$47 -> 0 | N33: 0 | O33: =-N33*L33 -> 0 | Q33: 5000 | R33: =$U$47 -> 0 | S33: 0 | T33: =-S33*Q33 -> 0 | V33: 2750 | W33: =$W$47 -> 0 | X33: 0 | Y33: =-X33*V33 -> 0 | AA33: 420 | AB33: =$Y$47 -> 0 | AC33: 0 | AD33: =-AC33*AA33 -> 0
B34: Total Costs | I34: REGUP | J34: 1 | L34: 5000 | M34: =$S$47 -> 0 | N34: 0 | O34: =-N34*L34 -> 0 | Q34: 5000 | R34: =$U$47 -> 0 | S34: 0 | T34: =-S34*Q34 -> 0 | V34: 2100 | W34: =$W$47 -> 0 | X34: 0 | Y34: =-X34*V34 -> 0 | AA34: 150 | AB34: =$Y$47 -> 0 | AC34: 0 | AD34: =-AC34*AA34 -> 0
B35: Energy | C35: =G27 -> 21540 | I35: RRS | J35: 1 | L35: 5000 | M35: 0 | N35: 0 | O35: 0 | Q35: 5000 | R35: 0 | S35: 0 | T35: 0 | V35: 1500 | W35: 0 | X35: 0 | Y35: 0 | AA35: 60 | AB35: 0 | AC35: 0 | AD35: 0
B36: AS | C36: =O27+T27+Y27+AD27 -> 0 | I36: ECRS | J36: 1 | L36: 5000 | M36: 0 | N36: 0 | O36: 0 | Q36: 3000 | R36: 0 | S36: 0 | T36: 0 | V36: 950 | W36: 0 | X36: 0 | Y36: 0 | AA36: 25 | AB36: 0 | AC36: 0 | AD36: 0
B37: AS Shortage | C37: =O38+T38+Y38+AD40 -> 0 | E37: Sys. Lambda = | F37: 30 | I37: NSPIN | J37: 1 | L37: 5000 | M37: 0 | N37: 0 | O37: 0 | Q37: 3000 | R37: 0 | S37: 0 | T37: 0 | V37: 600 | W37: 0 | X37: 0 | Y37: 0 | AA37: 12 | AB37: 0 | AC37: 0 | AD37: 0
B38: Transmission Penalty | C38: =I59 -> 0 | M38: Totals: | N38: =SUM(N33:N37) -> 0 | O38: =SUM(O33:O37) -> 0 | R38: Totals: | S38: =SUM(S33:S37) -> 0 | T38: =SUM(T33:T37) -> 0 | W38: Totals: | X38: =SUM(X33:X37) -> 0 | Y38: =SUM(Y33:Y37) -> 0 | AA38: 9 | AB38: 0 | AC38: 0 | AD38: 0
B39: Power Balance Penalty | C39: =E32 -> 0 | AA39: 7 | AB39: 0 | AC39: 0 | AD39: 0
A40: Objective Function: | C40: =G27+E32+I59+O27+T27+Y27+AD27+O38+T38+Y38+AD40 -> 21540 | L40: ASDC QTY - Award | N40: =N38 - N27 -> 0 | Q40: ASDC QTY - Award | S40: =S38 - S27 -> 0 | V40: ASDC QTY - Award | X40: =X38 - X27 -> 0 | AB40: Totals: | AC40: =SUM(AC33:AC39) -> 0 | AD40: =SUM(AD33:AD39) -> 0
A42: Injection Array | AA42: ASDC QTY - Award | AC42: =AC40 - AC27 -> 0
A43: Bus | B43: A | C43: B | D43: C | E43: D | F43: E
A44: Bus Injection | B44: =F21+F22 -> 210 | C44: =-C13 -> -300 | D44: =F23-C14 -> -10 | E44: =F24-C15 -> -300 | F44: =F25+F26 -> 400 | S44: REGUP | U44: RRS | W44: ECRS | Y44: NSPIN
R45: Block | S45: QTY | T45: Price | U45: QTY | V45: Price | W45: QTY | X45: Price | Y45: QTY | Z45: Price
A46: Transmission Limits | B46: A | C46: B | D46: C | E46: D | F46: E | H46: Slack | J46: Flow | K46: Flow + Slack | L46: PL Limit | M46: Shadow Price | O46: Shadow Price | S46: 0 | T46: =T47 -> 5000 | U46: 0 | V46: =V47 -> 5000 | W46: 0 | X46: =X47 -> 2750 | Y46: 0 | Z46: =Z47 -> 420
A47: L1 High Limit | B47: =B4*B$44 -> 86.94421652 | C47: 74.40361271 | D47: 1.225806646 | E47: -66.70668726 | F47: 152.0163139 | H47: 0 | I47: =H47*System!M17 -> 0 | J47: =SUM(B47:F47) -> 247.8832625 | K47: =J47-H47 -> 247.8832625 | L47: =I4 -> 1000 | M47: 0 | O47: PL1 | P47: =M47-M53 -> 0 | R47: 1 | S47: =$R47*System!$Q$17/5 -> 0 | T47: =L33 -> 5000 | U47: =$R47*System!$Q$18/5 -> 0 | V47: =Q33 -> 5000 | W47: =$R47*System!$Q$19/5 -> 0 | X47: =V33 -> 2750 | Y47: =$R47*System!$Q$20/7 -> 0 | Z47: =AA33 -> 420
A48: L2 High Limit | B48: 66.80171103 | C48: -40.39053262 | D48: -0.6654378937 | E48: 36.21220166 | F48: 96.1234747 | H48: 0 | I48: =H48*System!M18 -> 0 | J48: =SUM(B48:F48) -> 158.0814169 | K48: =J48-H48 -> 158.0814169 | L48: 1000 | M48: 0 | O48: PL2 | P48: =M48-M54 -> 0 | S48: =S47 -> 0 | T48: =T49 -> 5000 | U48: =U47 -> 0 | V48: =V49 -> 5000 | W48: =W47 -> 0 | X48: =X49 -> 2100 | Y48: =Y47 -> 0 | Z48: =Z49 -> 150
A49: L3 High Limit | B49: 29.67148925 | C49: -143.7782055 | D49: 3.953079374 | E49: 15.11149456 | F49: 42.92540483 | H49: 0 | I49: =H49*System!M19 -> 0 | J49: -52.11673746 | K49: -52.11673746 | L49: 1000 | M49: 0 | O49: PL3 | P49: 0 | R49: 2 | S49: =$R49*System!$Q$17/5 -> 0 | T49: =L34 -> 5000 | U49: =$R49*System!$Q$18/5 -> 0 | V49: =Q34 -> 5000 | W49: =$R49*System!$Q$19/5 -> 0 | X49: =V34 -> 2100 | Y49: =$R49*System!$Q$20/7 -> 0 | Z49: =AA34 -> 150
A50: L4 High Limit | B50: -27.60123802 | C50: -61.96002365 | D50: -3.319647899 | E50: 96.92967638 | F50: -66.16550426 | H50: 0 | I50: =H50*System!M20 -> 0 | J50: -62.11673746 | K50: -62.11673746 | L50: 1000 | M50: 0 | O50: PL4 | P50: 0 | S50: =S49 -> 0 | T50: =T51 -> 5000 | U50: =U49 -> 0 | V50: =V51 -> 5000 | W50: =W49 -> 0 | X50: =X51 -> 1500 | Y50: =Y49 -> 0 | Z50: =Z51 -> 60
A51: L5 High Limit | B51: -56.25407245 | C51: 34.0130801 | D51: 0.5603687526 | E51: -30.4944856 | F51: -151.8602114 | H51: 0 | I51: =H51*System!M21 -> 0 | J51: -204.0353206 | K51: -204.0353206 | L51: 1000 | M51: 0 | O51: PL5 | P51: 0 | R51: 3 | S51: =$R51*System!$Q$17/5 -> 0 | T51: =L35 -> 5000 | U51: =$R51*System!$Q$18/5 -> 0 | V51: =Q35 -> 5000 | W51: =$R51*System!$Q$19/5 -> 0 | X51: =V35 -> 1500 | Y51: =$R51*System!$Q$20/7 -> 0 | Z51: =AA35 -> 60
A52: L6 High Limit | B52: -56.25407245 | C52: 34.0130801 | D52: 0.5603687526 | E52: -30.4944856 | F52: 248.1397886 | H52: 0 | I52: =H52*System!M22 -> 0 | J52: 195.9646794 | K52: 195.9646794 | L52: 1000 | M52: 0 | O52: PL6 | P52: 0 | S52: =S51 -> 0 | T52: =T53 -> 5000 | U52: =U51 -> 0 | V52: =V53 -> 3000 | W52: =W51 -> 0 | X52: =X53 -> 950 | Y52: =Y51 -> 0 | Z52: =Z53 -> 25
A53: L1 Low Limit | B53: =-B47 -> -86.94421652 | C53: =-C47 -> -74.40361271 | D53: =-D47 -> -1.225806646 | E53: 66.70668726 | F53: -152.0163139 | H53: 0 | I53: =H53*System!M17 -> 0 | J53: -247.8832625 | K53: -247.8832625 | L53: =I4 -> 1000 | M53: 0 | R53: 4 | S53: =$R53*System!$Q$17/5 -> 0 | T53: =L36 -> 5000 | U53: =$R53*System!$Q$18/5 -> 0 | V53: =Q36 -> 3000 | W53: =$R53*System!$Q$19/5 -> 0 | X53: =V36 -> 950 | Y53: =$R53*System!$Q$20/7 -> 0 | Z53: =AA36 -> 25
A54: L2 Low Limit | B54: =-B48 -> -66.80171103 | C54: 40.39053262 | D54: 0.6654378937 | E54: -36.21220166 | F54: -96.1234747 | H54: 0 | I54: =H54*System!M18 -> 0 | J54: -158.0814169 | K54: -158.0814169 | L54: 1000 | M54: 0 | O54: Bus A | P54: =MMULT(TRANSPOSE(B4:F9),P47:P52) -> 0 | Q54: =$F$37-$P54 -> 30 | S54: =S53 -> 0 | T54: =T55 -> 5000 | U54: =U53 -> 0 | V54: =V55 -> 3000 | W54: =W53 -> 0 | X54: =X55 -> 600 | Y54: =Y53 -> 0 | Z54: =Z55 -> 12
A55: L3 Low Limit | B55: -29.67148925 | C55: 143.7782055 | D55: -3.953079374 | E55: -15.11149456 | F55: -42.92540483 | H55: 0 | I55: =H55*System!M19 -> 0 | J55: 52.11673746 | K55: 52.11673746 | L55: 1000 | M55: 0 | O55: Bus B | P55: 0 | Q55: =$F$37-$P55 -> 30 | R55: 5 | S55: =$R55*System!$Q$17/5 -> 0 | T55: =L37 -> 5000 | U55: =$R55*System!$Q$18/5 -> 0 | V55: =Q37 -> 3000 | W55: =$R55*System!$Q$19/5 -> 0 | X55: =V37 -> 600 | Y55: =$R55*System!$Q$20/7 -> 0 | Z55: =AA37 -> 12
A56: L4 Low Limit | B56: 27.60123802 | C56: 61.96002365 | D56: 3.319647899 | E56: -96.92967638 | F56: 66.16550426 | H56: 0 | I56: =H56*System!M20 -> 0 | J56: 62.11673746 | K56: 62.11673746 | L56: 1000 | M56: 0 | O56: Bus C | P56: 0 | Q56: =$F$37-$P56 -> 30 | Y56: =Y55 -> 0 | Z56: =Z57 -> 9
A57: L5 Low Limit | B57: 56.25407245 | C57: -34.0130801 | D57: -0.5603687526 | E57: 30.4944856 | F57: 151.8602114 | H57: 0 | I57: =H57*System!M21 -> 0 | J57: 204.0353206 | K57: 204.0353206 | L57: 1000 | M57: 0 | O57: Bus D | P57: 0 | Q57: =$F$37-$P57 -> 30 | R57: 6 | Y57: =$R57*System!$Q$20/7 -> 0 | Z57: =AA38 -> 9
A58: L6 Low Limit | B58: 56.25407245 | C58: -34.0130801 | D58: -0.5603687526 | E58: 30.4944856 | F58: -248.1397886 | H58: 0 | I58: =H58*System!M22 -> 0 | J58: -195.9646794 | K58: -195.9646794 | L58: 1000 | M58: 0 | O58: Bus E | P58: 0 | Q58: =$F$37-$P58 -> 30 | Y58: =Y57 -> 0 | Z58: =Z59 -> 7
H59: Violation Slack Sum: | I59: =SUM(I47:I58) -> 0 | R59: 7 | Y59: =$R59*System!$Q$20/7 -> 0 | Z59: =AA39 -> 7
A61: Constraint Analysis
E62: Shift Factors | J62: Limit | K62: Flow | L62: Shadow Price
B63: Line | C63: From Bus | D63: To Bus | E63: A | F63: B | G63: C | H63: D | I63: E
A64: Forward Direction | B64: L1 | C64: A | D64: B | E64: =B4 -> 0.4140200787 | F64: -0.2480120424 | G64: -0.1225806646 | H64: 0.2223556242 | I64: 0.3800407848 | J64: =I4 -> 1000 | K64: =K47 -> 247.8832625 | L64: =M47 -> 0
B65: L2 | C65: A | D65: D | E65: 0.3181033859 | F65: 0.1346351087 | G65: 0.06654378937 | H65: -0.1207073389 | I65: 0.2403086867 | J65: 1000 | K65: =K48 -> 158.0814169 | L65: =M48 -> 0
B66: L3 | C66: B | D66: C | E66: =B6 -> 0.1412928059 | F66: 0.4792606849 | G66: -0.3953079374 | H66: -0.05037164853 | I66: 0.1073135121 | J66: 1000 | K66: -52.11673746 | L66: 0
B67: L4 | C67: C | D67: D | E67: =B7 -> -0.1314344668 | F67: 0.2065334122 | G67: 0.3319647899 | H67: -0.3230989213 | I67: -0.1654137606 | J67: 1000 | K67: -62.11673746 | L67: 0
B68: L5 | C68: D | D68: E | E68: =B8 -> -0.2678765355 | F68: -0.1133769337 | G68: -0.05603687526 | H68: 0.1016482853 | I68: -0.3796505284 | J68: 1000 | K68: -204.0353206 | L68: 0
B69: L6 | C69: E | D69: A | E69: =B9 -> -0.2678765355 | F69: -0.1133769337 | G69: -0.05603687526 | H69: 0.1016482853 | I69: 0.6203494716 | J69: 1000 | K69: 195.9646794 | L69: 0
A70: Backward Direction | B70: L1 | C70: B | D70: A | E70: =-B4 -> -0.4140200787 | F70: 0.2480120424 | G70: 0.1225806646 | H70: -0.2223556242 | I70: -0.3800407848 | J70: =I4 -> 1000 | K70: -247.8832625 | L70: 0
B71: L2 | C71: D | D71: A | E71: -0.3181033859 | F71: -0.1346351087 | G71: -0.06654378937 | H71: 0.1207073389 | I71: -0.2403086867 | J71: =I5 -> 1000 | K71: -158.0814169 | L71: 0
B72: L3 | C72: C | D72: B | E72: -0.1412928059 | F72: -0.4792606849 | G72: 0.3953079374 | H72: 0.05037164853 | I72: -0.1073135121 | J72: 1000 | K72: 52.11673746 | L72: 0
B73: L4 | C73: D | D73: C | E73: 0.1314344668 | F73: -0.2065334122 | G73: -0.3319647899 | H73: 0.3230989213 | I73: 0.1654137606 | J73: 1000 | K73: 62.11673746 | L73: 0
B74: L5 | C74: E | D74: D | E74: 0.2678765355 | F74: 0.1133769337 | G74: 0.05603687526 | H74: -0.1016482853 | I74: 0.3796505284 | J74: 1000 | K74: 204.0353206 | L74: 0
B75: L6 | C75: A | D75: E | E75: 0.2678765355 | F75: 0.1133769337 | G75: 0.05603687526 | H75: -0.1016482853 | I75: -0.6203494716 | J75: 1000 | K75: -195.9646794 | L75: 0

Sheet Answer Report
A1: Microsoft Excel 16.0 Answer Report
A2: Worksheet: [RTC_Simulator_v3.xlsm]Optimization Engine
A3: Report Created: 6/2/2024 8:44:01 AM
A4: Result: Label1
A5: Solver Engine
B6: Engine: 單純 LP
B7: Solution Time: 0.203 Seconds.
B8: Iterations: 16 Subproblems: 0
A9: Solver Options
B10: Max Time Unlimited, Iterations Unlimited, Precision 0.000001
B11: Max Subproblems Unlimited, Max Integer Sols Unlimited, Integer Tolerance 1%, Assume NonNegative
A14: Objective Cell (Max)
B15: Cell | C15: Name | D15: Original Value | E15: Final Value
B16: $C$40 | C16: Objective Function: BP | D16: 21540 | E16: 21540
A19: Variable Cells
B20: Cell | C20: Name | D20: Original Value | E20: Final Value | F20: Integer
B21: $F$21 | C21: A Award (MW) | D21: 110 | E21: 110 | F21: Contin
B22: $F$22 | C22: A Award (MW) | D22: 100 | E22: 100 | F22: Contin
B23: $F$23 | C23: C Award (MW) | D23: 290 | E23: 290 | F23: Contin
B24: $F$24 | C24: D Award (MW) | D24: 200 | E24: 200 | F24: Contin
B25: $F$25 | C25: E Award (MW) | D25: 400 | E25: 400 | F25: Contin
B26: $F$26 | C26: E Award (MW) | D26: 0 | E26: 0 | F26: Contin
B27: $C$32 | C27: BP | D27: 0 | E27: 0 | F27: Contin
B28: $N$21 | C28: A Award (MW) | D28: 0 | E28: 0 | F28: Contin
B29: $N$22 | C29: A Award (MW) | D29: 0 | E29: 0 | F29: Contin
B30: $N$23 | C30: C Award (MW) | D30: 0 | E30: 0 | F30: Contin
B31: $N$24 | C31: D Award (MW) | D31: 0 | E31: 0 | F31: Contin
B32: $N$25 | C32: E Award (MW) | D32: 0 | E32: 0 | F32: Contin
B33: $N$26 | C33: E Award (MW) | D33: 0 | E33: 0 | F33: Contin
B34: $S$21 | C34: A Award (MW) | D34: 0 | E34: 0 | F34: Contin
B35: $S$22 | C35: A Award (MW) | D35: 0 | E35: 0 | F35: Contin
B36: $S$23 | C36: C Award (MW) | D36: 0 | E36: 0 | F36: Contin
B37: $S$24 | C37: D Award (MW) | D37: 0 | E37: 0 | F37: Contin
B38: $S$25 | C38: E Award (MW) | D38: 0 | E38: 0 | F38: Contin
B39: $S$26 | C39: E Award (MW) | D39: 0 | E39: 0 | F39: Contin
B40: $X$21 | C40: A Award (MW) | D40: 0 | E40: 0 | F40: Contin
B41: $X$22 | C41: A Award (MW) | D41: 0 | E41: 0 | F41: Contin
B42: $X$23 | C42: C Award (MW) | D42: 0 | E42: 0 | F42: Contin
B43: $X$24 | C43: D Award (MW) | D43: 0 | E43: 0 | F43: Contin
B44: $X$25 | C44: E Award (MW) | D44: 0 | E44: 0 | F44: Contin
B45: $X$26 | C45: E Award (MW) | D45: 0 | E45: 0 | F45: Contin
B46: $AC$21 | C46: A Award (MW) | D46: 0 | E46: 0 | F46: Contin
B47: $AC$22 | C47: A Award (MW) | D47: 0 | E47: 0 | F47: Contin
B48: $AC$23 | C48: C Award (MW) | D48: 0 | E48: 0 | F48: Contin
B49: $AC$24 | C49: D Award (MW) | D49: 0 | E49: 0 | F49: Contin
B50: $AC$25 | C50: E Award (MW) | D50: 0 | E50: 0 | F50: Contin
B51: $AC$26 | C51: E Award (MW) | D51: 0 | E51: 0 | F51: Contin
B52: $N$33 | C52: MCPC Award (MW) | D52: 0 | E52: 0 | F52: Contin
B53: $N$34 | C53: REGUP Award (MW) | D53: 0 | E53: 0 | F53: Contin
B54: $N$35 | C54: RRS Award (MW) | D54: 0 | E54: 0 | F54: Contin
B55: $N$36 | C55: ECRS Award (MW) | D55: 0 | E55: 0 | F55: Contin
B56: $N$37 | C56: NSPIN Award (MW) | D56: 0 | E56: 0 | F56: Contin
B57: $S$33 | C57: MCPC Award (MW) | D57: 0 | E57: 0 | F57: Contin
B58: $S$34 | C58: REGUP Award (MW) | D58: 0 | E58: 0 | F58: Contin
B59: $S$35 | C59: RRS Award (MW) | D59: 0 | E59: 0 | F59: Contin
B60: $S$36 | C60: ECRS Award (MW) | D60: 0 | E60: 0 | F60: Contin
B61: $S$37 | C61: NSPIN Award (MW) | D61: 0 | E61: 0 | F61: Contin
B62: $X$33 | C62: MCPC Award (MW) | D62: 0 | E62: 0 | F62: Contin
B63: $X$34 | C63: REGUP Award (MW) | D63: 0 | E63: 0 | F63: Contin
B64: $X$35 | C64: RRS Award (MW) | D64: 0 | E64: 0 | F64: Contin
B65: $X$36 | C65: ECRS Award (MW) | D65: 0 | E65: 0 | F65: Contin
B66: $X$37 | C66: NSPIN Award (MW) | D66: 0 | E66: 0 | F66: Contin
B67: $AC$33 | C67: MCPC Award (MW) | D67: 0 | E67: 0 | F67: Contin
B68: $AC$34 | C68: REGUP Award (MW) | D68: 0 | E68: 0 | F68: Contin
B69: $AC$35 | C69: RRS Award (MW) | D69: 0 | E69: 0 | F69: Contin
B70: $AC$36 | C70: ECRS Award (MW) | D70: 0 | E70: 0 | F70: Contin
B71: $AC$37 | C71: NSPIN Award (MW) | D71: 0 | E71: 0 | F71: Contin
B72: $AC$38 | C72: Totals: Award (MW) | D72: 0 | E72: 0 | F72: Contin
B73: $AC$39 | C73: Power Balance Penalty Award (MW) | D73: 0 | E73: 0 | F73: Contin
B74: $H$47 | C74: L1 High Limit Slack | D74: 0 | E74: 0 | F74: Contin
B75: $H$48 | C75: L2 High Limit Slack | D75: 0 | E75: 0 | F75: Contin
B76: $H$49 | C76: L3 High Limit Slack | D76: 0 | E76: 0 | F76: Contin
B77: $H$50 | C77: L4 High Limit Slack | D77: 0 | E77: 0 | F77: Contin
B78: $H$51 | C78: L5 High Limit Slack | D78: 0 | E78: 0 | F78: Contin
B79: $H$52 | C79: L6 High Limit Slack | D79: 0 | E79: 0 | F79: Contin
B80: $H$53 | C80: L1 Low Limit Slack | D80: 0 | E80: 0 | F80: Contin
B81: $H$54 | C81: L2 Low Limit Slack | D81: 0 | E81: 0 | F81: Contin
B82: $H$55 | C82: L3 Low Limit Slack | D82: 0 | E82: 0 | F82: Contin
B83: $H$56 | C83: L4 Low Limit Slack | D83: 0 | E83: 0 | F83: Contin
B84: $H$57 | C84: L5 Low Limit Slack | D84: 0 | E84: 0 | F84: Contin
B85: $H$58 | C85: L6 Low Limit Slack | D85: 0 | E85: 0 | F85: Contin
A88: Constraints
B89: Cell | C89: Name | D89: Cell Value | E89: Formula | F89: Status | G89: Slack
B90: $F$28 | C90: Sum + PBPC: Award (MW) | D90: 1100 | E90: $F$28=$C$16 | F90: Binding | G90: 0
B91: $I$21 | C91: A Energy + AS Award | D91: 110 | E91: $I$21<=$E$21 | F91: Binding | G91: 0
B92: $I$22 | C92: A Energy + AS Award | D92: 100 | E92: $I$22<=$E$22 | F92: Binding | G92: 0
B93: $I$23 | C93: C Energy + AS Award | D93: 290 | E93: $I$23<=$E$23 | F93: Not Binding | G93: 230
B94: $I$24 | C94: D Energy + AS Award | D94: 200 | E94: $I$24<=$E$24 | F94: Binding | G94: 0
B95: $I$25 | C95: E Energy + AS Award | D95: 400 | E95: $I$25<=$E$25 | F95: Binding | G95: 0
B96: $I$26 | C96: E Energy + AS Award | D96: 0 | E96: $I$26<=$E$26 | F96: Binding | G96: 0
B97: $N$40 | C97: ASDC QTY - Award Award (MW) | D97: 0 | E97: $N$40=0 | F97: Binding | G97: 0
B98: $S$40 | C98: ASDC QTY - Award Award (MW) | D98: 0 | E98: $S$40=0 | F98: Binding | G98: 0
B99: $X$40 | C99: ASDC QTY - Award Award (MW) | D99: 0 | E99: $X$40=0 | F99: Binding | G99: 0
B100: $AC$42 | C100: ASDC QTY - Award Award (MW) | D100: 0 | E100: $AC$42=0 | F100: Binding | G100: 0
B101: $AG$21 | C101: A Total Award | D101: 0 | E101: $AG$21<=$AF$21 | F101: Not Binding | G101: 20
B102: $AG$22 | C102: A Total Award | D102: 0 | E102: $AG$22<=$AF$22 | F102: Not Binding | G102: 20
B103: $AG$23 | C103: C Total Award | D103: 0 | E103: $AG$23<=$AF$23 | F103: Binding | G103: 0
B104: $AG$24 | C104: D Total Award | D104: 0 | E104: $AG$24<=$AF$24 | F104: Not Binding | G104: 20
B105: $AG$25 | C105: E Total Award | D105: 0 | E105: $AG$25<=$AF$25 | F105: Not Binding | G105: 20
B106: $AG$26 | C106: E Total Award | D106: 0 | E106: $AG$26<=$AF$26 | F106: Binding | G106: 0
B107: $K$47 | C107: L1 High Limit Flow + Slack | D107: 247.8832625 | E107: $K$47<=$L$47 | F107: Not Binding | G107: 752.1167375
B108: $K$48 | C108: L2 High Limit Flow + Slack | D108: 158.0814169 | E108: $K$48<=$L$48 | F108: Not Binding | G108: 841.9185831
B109: $K$49 | C109: L3 High Limit Flow + Slack | D109: -52.11673746 | E109: $K$49<=$L$49 | F109: Not Binding | G109: 1052.116737
B110: $K$50 | C110: L4 High Limit Flow + Slack | D110: -62.11673746 | E110: $K$50<=$L$50 | F110: Not Binding | G110: 1062.116737
B111: $K$51 | C111: L5 High Limit Flow + Slack | D111: -204.0353206 | E111: $K$51<=$L$51 | F111: Not Binding | G111: 1204.035321
B112: $K$52 | C112: L6 High Limit Flow + Slack | D112: 195.9646794 | E112: $K$52<=$L$52 | F112: Not Binding | G112: 804.0353206
B113: $K$53 | C113: L1 Low Limit Flow + Slack | D113: -247.8832625 | E113: $K$53<=$L$53 | F113: Not Binding | G113: 1247.883263
B114: $K$54 | C114: L2 Low Limit Flow + Slack | D114: -158.0814169 | E114: $K$54<=$L$54 | F114: Not Binding | G114: 1158.081417
B115: $K$55 | C115: L3 Low Limit Flow + Slack | D115: 52.11673746 | E115: $K$55<=$L$55 | F115: Not Binding | G115: 947.8832625
B116: $K$56 | C116: L4 Low Limit Flow + Slack | D116: 62.11673746 | E116: $K$56<=$L$56 | F116: Not Binding | G116: 937.8832625
B117: $K$57 | C117: L5 Low Limit Flow + Slack | D117: 204.0353206 | E117: $K$57<=$L$57 | F117: Not Binding | G117: 795.9646794
B118: $K$58 | C118: L6 Low Limit Flow + Slack | D118: -195.9646794 | E118: $K$58<=$L$58 | F118: Not Binding | G118: 1195.964679
B119: $F$21 | C119: A Award (MW) | D119: 110 | E119: $F$21>=$D$21 | F119: Not Binding | G119: 110
B120: $F$22 | C120: A Award (MW) | D120: 100 | E120: $F$22>=$D$22 | F120: Not Binding | G120: 100
B121: $F$23 | C121: C Award (MW) | D121: 290 | E121: $F$23>=$D$23 | F121: Not Binding | G121: 290
B122: $F$24 | C122: D Award (MW) | D122: 200 | E122: $F$24>=$D$24 | F122: Not Binding | G122: 200
B123: $F$25 | C123: E Award (MW) | D123: 400 | E123: $F$25>=$D$25 | F123: Not Binding | G123: 400
B124: $F$26 | C124: E Award (MW) | D124: 0 | E124: $F$26>=$D$26 | F124: Binding | G124: 0
B125: $C$32 | C125: BP | D125: 0 | E125: $C$32>=$A$32 | F125: Binding | G125: 0
B126: $C$32 | C126: BP | D126: 0 | E126: $C$32<=$B$32 | F126: Not Binding | G126: 99999
B127: $N$33 | C127: MCPC Award (MW) | D127: 0 | E127: $N$33<=$M$33 | F127: Binding | G127: 0
B128: $S$33 | C128: MCPC Award (MW) | D128: 0 | E128: $S$33<=$R$33 | F128: Binding | G128: 0
B129: $X$33 | C129: MCPC Award (MW) | D129: 0 | E129: $X$33<=$W$33 | F129: Binding | G129: 0
B130: $N$34 | C130: REGUP Award (MW) | D130: 0 | E130: $N$34<=$M$34 | F130: Binding | G130: 0
B131: $S$34 | C131: REGUP Award (MW) | D131: 0 | E131: $S$34<=$R$34 | F131: Binding | G131: 0
B132: $X$34 | C132: REGUP Award (MW) | D132: 0 | E132: $X$34<=$W$34 | F132: Binding | G132: 0
B133: $N$35 | C133: RRS Award (MW) | D133: 0 | E133: $N$35<=$M$35 | F133: Binding | G133: 0
B134: $S$35 | C134: RRS Award (MW) | D134: 0 | E134: $S$35<=$R$35 | F134: Binding | G134: 0
B135: $X$35 | C135: RRS Award (MW) | D135: 0 | E135: $X$35<=$W$35 | F135: Binding | G135: 0
B136: $N$36 | C136: ECRS Award (MW) | D136: 0 | E136: $N$36<=$M$36 | F136: Binding | G136: 0
B137: $S$36 | C137: ECRS Award (MW) | D137: 0 | E137: $S$36<=$R$36 | F137: Binding | G137: 0
B138: $X$36 | C138: ECRS Award (MW) | D138: 0 | E138: $X$36<=$W$36 | F138: Binding | G138: 0
B139: $N$37 | C139: NSPIN Award (MW) | D139: 0 | E139: $N$37<=$M$37 | F139: Binding | G139: 0
B140: $S$37 | C140: NSPIN Award (MW) | D140: 0 | E140: $S$37<=$R$37 | F140: Binding | G140: 0
B141: $X$37 | C141: NSPIN Award (MW) | D141: 0 | E141: $X$37<=$W$37 | F141: Binding | G141: 0
B142: $AC$33 | C142: MCPC Award (MW) | D142: 0 | E142: $AC$33<=$AB$33 | F142: Binding | G142: 0
B143: $AC$34 | C143: REGUP Award (MW) | D143: 0 | E143: $AC$34<=$AB$34 | F143: Binding | G143: 0
B144: $AC$35 | C144: RRS Award (MW) | D144: 0 | E144: $AC$35<=$AB$35 | F144: Binding | G144: 0
B145: $AC$36 | C145: ECRS Award (MW) | D145: 0 | E145: $AC$36<=$AB$36 | F145: Binding | G145: 0
B146: $AC$37 | C146: NSPIN Award (MW) | D146: 0 | E146: $AC$37<=$AB$37 | F146: Binding | G146: 0
B147: $AC$38 | C147: Totals: Award (MW) | D147: 0 | E147: $AC$38<=$AB$38 | F147: Binding | G147: 0
B148: $AC$39 | C148: Power Balance Penalty Award (MW) | D148: 0 | E148: $AC$39<=$AB$39 | F148: Binding | G148: 0
B149: $H$47 | C149: L1 High Limit Slack | D149: 0 | E149: $H$47>=0 | F149: Binding | G149: 0
B150: $H$48 | C150: L2 High Limit Slack | D150: 0 | E150: $H$48>=0 | F150: Binding | G150: 0
B151: $H$49 | C151: L3 High Limit Slack | D151: 0 | E151: $H$49>=0 | F151: Binding | G151: 0
B152: $H$50 | C152: L4 High Limit Slack | D152: 0 | E152: $H$50>=0 | F152: Binding | G152: 0
B153: $H$51 | C153: L5 High Limit Slack | D153: 0 | E153: $H$51>=0 | F153: Binding | G153: 0
B154: $H$52 | C154: L6 High Limit Slack | D154: 0 | E154: $H$52>=0 | F154: Binding | G154: 0
B155: $H$53 | C155: L1 Low Limit Slack | D155: 0 | E155: $H$53>=0 | F155: Binding | G155: 0
B156: $H$54 | C156: L2 Low Limit Slack | D156: 0 | E156: $H$54>=0 | F156: Binding | G156: 0
B157: $H$55 | C157: L3 Low Limit Slack | D157: 0 | E157: $H$55>=0 | F157: Binding | G157: 0
B158: $H$56 | C158: L4 Low Limit Slack | D158: 0 | E158: $H$56>=0 | F158: Binding | G158: 0
B159: $H$57 | C159: L5 Low Limit Slack | D159: 0 | E159: $H$57>=0 | F159: Binding | G159: 0
B160: $H$58 | C160: L6 Low Limit Slack | D160: 0 | E160: $H$58>=0 | F160: Binding | G160: 0

Sheet Sensitivity Report
A1: Microsoft Excel 16.0 Sensitivity Report
A2: Worksheet: [RTC_Simulator_v3.xlsm]Optimization Engine
A3: Report Created: 6/2/2024 8:44:02 AM
A6: Variable Cells
D7: Final | E7: Reduced | F7: Objective | G7: Allowable | H7: Allowable
B8: Cell | C8: Name | D8: Value | E8: Cost | F8: Coefficient | G8: Increase | H8: Decrease
B9: $F$21 | C9: A Award (MW) | D9: 110 | E9: 0 | F9: 14 | G9: 15 | H9: 1e+30
B10: $F$22 | C10: A Award (MW) | D10: 100 | E10: 0 | F10: 15 | G10: 14 | H10: 1e+30
B11: $F$23 | C11: C Award (MW) | D11: 290 | E11: 0 | F11: 30 | G11: 6970.01 | H11: 1
B12: $F$24 | C12: D Award (MW) | D12: 200 | E12: 0 | F12: 29 | G12: 1 | H12: 14
B13: $F$25 | C13: E Award (MW) | D13: 400 | E13: 0 | F13: 10 | G13: 19 | H13: 1e+30
B14: $F$26 | C14: E Award (MW) | D14: 0 | E14: 0 | F14: 10 | G14: 19 | H14: 1e+30
B15: $C$32 | C15: BP | D15: 0 | E15: 6970.01 | F15: 7000.01 | G15: 1e+30 | H15: 6970.01
B16: $N$21 | C16: A Award (MW) | D16: 0 | E16: 15 | F16: 0 | G16: 1e+30 | H16: 15
B17: $N$22 | C17: A Award (MW) | D17: 0 | E17: 14 | F17: 0 | G17: 1e+30 | H17: 14
B18: $N$23 | C18: C Award (MW) | D18: 0 | E18: 0 | F18: 0 | G18: 1 | H18: 0
B19: $N$24 | C19: D Award (MW) | D19: 0 | E19: 0 | F19: 0 | G19: 0 | H19: 1
B20: $N$25 | C20: E Award (MW) | D20: 0 | E20: 19 | F20: 0 | G20: 1e+30 | H20: 19
B21: $N$26 | C21: E Award (MW) | D21: 0 | E21: 19 | F21: 0 | G21: 1e+30 | H21: 19
B22: $S$21 | C22: A Award (MW) | D22: 0 | E22: 35 | F22: 20 | G22: 1e+30 | H22: 35
B23: $S$22 | C23: A Award (MW) | D23: 0 | E23: 34 | F23: 20 | G23: 1e+30 | H23: 34
B24: $S$23 | C24: C Award (MW) | D24: 0 | E24: 0 | F24: 0 | G24: 19 | H24: 2999
B25: $S$24 | C25: D Award (MW) | D25: 0 | E25: 20 | F25: 20 | G25: 1e+30 | H25: 20
B26: $S$25 | C26: E Award (MW) | D26: 0 | E26: 39 | F26: 20 | G26: 1e+30 | H26: 39
B27: $S$26 | C27: E Award (MW) | D27: 0 | E27: 19 | F27: 0 | G27: 1e+30 | H27: 19
B28: $X$21 | C28: A Award (MW) | D28: 0 | E28: 15 | F28: 0 | G28: 1e+30 | H28: 15
B29: $X$22 | C29: A Award (MW) | D29: 0 | E29: 14 | F29: 0 | G29: 1e+30 | H29: 14
B30: $X$23 | C30: C Award (MW) | D30: 0 | E30: 0 | F30: 0 | G30: 0 | H30: 599
B31: $X$24 | C31: D Award (MW) | D31: 0 | E31: 0 | F31: 0 | G31: 1e+30 | H31: 0
B32: $X$25 | C32: E Award (MW) | D32: 0 | E32: 19 | F32: 0 | G32: 1e+30 | H32: 19
B33: $X$26 | C33: E Award (MW) | D33: 0 | E33: 19 | F33: 0 | G33: 1e+30 | H33: 19
B34: $AC$21 | C34: A Award (MW) | D34: 0 | E34: 15 | F34: 0 | G34: 1e+30 | H34: 15
B35: $AC$22 | C35: A Award (MW) | D35: 0 | E35: 14 | F35: 0 | G35: 1e+30 | H35: 14
B36: $AC$23 | C36: C Award (MW) | D36: 0 | E36: 0 | F36: 0 | G36: 0 | H36: 6
B37: $AC$24 | C37: D Award (MW) | D37: 0 | E37: 0 | F37: 0 | G37: 1e+30 | H37: 0
B38: $AC$25 | C38: E Award (MW) | D38: 0 | E38: 19 | F38: 0 | G38: 1e+30 | H38: 19
B39: $AC$26 | C39: E Award (MW) | D39: 0 | E39: 19 | F39: 0 | G39: 1e+30 | H39: 19
B40: $N$33 | C40: MCPC Award (MW) | D40: 0 | E40: -4999 | F40: -5000 | G40: 1e+30 | H40: 4999
B41: $N$34 | C41: REGUP Award (MW) | D41: 0 | E41: -4999 | F41: -5000 | G41: 1e+30 | H41: 4999
B42: $N$35 | C42: RRS Award (MW) | D42: 0 | E42: -4999 | F42: -5000 | G42: 1e+30 | H42: 4999
B43: $N$36 | C43: ECRS Award (MW) | D43: 0 | E43: -4999 | F43: -5000 | G43: 1e+30 | H43: 4999
B44: $N$37 | C44: NSPIN Award (MW) | D44: 0 | E44: -4999 | F44: -5000 | G44: 1e+30 | H44: 4999
B45: $S$33 | C45: MCPC Award (MW) | D45: 0 | E45: -4999 | F45: -5000 | G45: 1e+30 | H45: 4999
B46: $S$34 | C46: REGUP Award (MW) | D46: 0 | E46: -4999 | F46: -5000 | G46: 1e+30 | H46: 4999
B47: $S$35 | C47: RRS Award (MW) | D47: 0 | E47: -4999 | F47: -5000 | G47: 1e+30 | H47: 4999
B48: $S$36 | C48: ECRS Award (MW) | D48: 0 | E48: -2999 | F48: -3000 | G48: 1e+30 | H48: 2999
B49: $S$37 | C49: NSPIN Award (MW) | D49: 0 | E49: -2999 | F49: -3000 | G49: 1e+30 | H49: 2999
B50: $X$33 | C50: MCPC Award (MW) | D50: 0 | E50: -2749 | F50: -2750 | G50: 1e+30 | H50: 2749
B51: $X$34 | C51: REGUP Award (MW) | D51: 0 | E51: -2099 | F51: -2100 | G51: 1e+30 | H51: 2099
B52: $X$35 | C52: RRS Award (MW) | D52: 0 | E52: -1499 | F52: -1500 | G52: 1e+30 | H52: 1499
B53: $X$36 | C53: ECRS Award (MW) | D53: 0 | E53: -949 | F53: -950 | G53: 1e+30 | H53: 949
B54: $X$37 | C54: NSPIN Award (MW) | D54: 0 | E54: -599 | F54: -600 | G54: 1e+30 | H54: 599
B55: $AC$33 | C55: MCPC Award (MW) | D55: 0 | E55: -419 | F55: -420 | G55: 1e+30 | H55: 419
B56: $AC$34 | C56: REGUP Award (MW) | D56: 0 | E56: -149 | F56: -150 | G56: 1e+30 | H56: 149
B57: $AC$35 | C57: RRS Award (MW) | D57: 0 | E57: -59 | F57: -60 | G57: 1e+30 | H57: 59
B58: $AC$36 | C58: ECRS Award (MW) | D58: 0 | E58: -24 | F58: -25 | G58: 1e+30 | H58: 24
B59: $AC$37 | C59: NSPIN Award (MW) | D59: 0 | E59: -11 | F59: -12 | G59: 1e+30 | H59: 11
B60: $AC$38 | C60: Totals: Award (MW) | D60: 0 | E60: -8 | F60: -9 | G60: 1e+30 | H60: 8
B61: $AC$39 | C61: Power Balance Penalty Award (MW) | D61: 0 | E61: -6 | F61: -7 | G61: 1e+30 | H61: 6
B62: $H$47 | C62: L1 High Limit Slack | D62: 0 | E62: 4500 | F62: 4500 | G62: 1e+30 | H62: 4500
B63: $H$48 | C63: L2 High Limit Slack | D63: 0 | E63: 4500 | F63: 4500 | G63: 1e+30 | H63: 4500
B64: $H$49 | C64: L3 High Limit Slack | D64: 0 | E64: 4500 | F64: 4500 | G64: 1e+30 | H64: 4500
B65: $H$50 | C65: L4 High Limit Slack | D65: 0 | E65: 4500 | F65: 4500 | G65: 1e+30 | H65: 4500
B66: $H$51 | C66: L5 High Limit Slack | D66: 0 | E66: 4500 | F66: 4500 | G66: 1e+30 | H66: 4500
B67: $H$52 | C67: L6 High Limit Slack | D67: 0 | E67: 4500 | F67: 4500 | G67: 1e+30 | H67: 4500
B68: $H$53 | C68: L1 Low Limit Slack | D68: 0 | E68: 4500 | F68: 4500 | G68: 1e+30 | H68: 4500
B69: $H$54 | C69: L2 Low Limit Slack | D69: 0 | E69: 4500 | F69: 4500 | G69: 1e+30 | H69: 4500
B70: $H$55 | C70: L3 Low Limit Slack | D70: 0 | E70: 4500 | F70: 4500 | G70: 1e+30 | H70: 4500
B71: $H$56 | C71: L4 Low Limit Slack | D71: 0 | E71: 4500 | F71: 4500 | G71: 1e+30 | H71: 4500
B72: $H$57 | C72: L5 Low Limit Slack | D72: 0 | E72: 4500 | F72: 4500 | G72: 1e+30 | H72: 4500
B73: $H$58 | C73: L6 Low Limit Slack | D73: 0 | E73: 4500 | F73: 4500 | G73: 1e+30 | H73: 4500
A75: Constraints
D76: Final | E76: Shadow | F76: Constraint | G76: Allowable | H76: Allowable
B77: Cell | C77: Name | D77: Value | E77: Price | F77: R.H. Side | G77: Increase | H77: Decrease
B78: $F$28 | C78: Sum + PBPC: Award (MW) | D78: 1100 | E78: 30 | F78: 1100 | G78: 230 | H78: 290
B79: $I$21 | C79: A Energy + AS Award | D79: 110 | E79: -16 | F79: 110 | G79: 290 | H79: 110
B80: $I$22 | C80: A Energy + AS Award | D80: 100 | E80: -15 | F80: 100 | G80: 290 | H80: 100
B81: $I$23 | C81: C Energy + AS Award | D81: 290 | E81: 0 | F81: 520 | G81: 1e+30 | H81: 230
B82: $I$24 | C82: D Energy + AS Award | D82: 200 | E82: -1 | F82: 200 | G82: 290 | H82: 200
B83: $I$25 | C83: E Energy + AS Award | D83: 400 | E83: -20 | F83: 400 | G83: 290 | H83: 230
B84: $I$26 | C84: E Energy + AS Award | D84: 0 | E84: -20 | F84: 0 | G84: 290 | H84: 0
B85: $N$40 | C85: ASDC QTY - Award Award (MW) | D85: 0 | E85: -1 | F85: 0 | G85: 0 | H85: 20
B86: $S$40 | C86: ASDC QTY - Award Award (MW) | D86: 0 | E86: -1 | F86: 0 | G86: 0 | H86: 0
B87: $X$40 | C87: ASDC QTY - Award Award (MW) | D87: 0 | E87: -1 | F87: 0 | G87: 0 | H87: 0
B88: $AC$42 | C88: ASDC QTY - Award Award (MW) | D88: 0 | E88: -1 | F88: 0 | G88: 0 | H88: 0
B89: $AG$21 | C89: A Total Award | D89: 0 | E89: 0 | F89: 20 | G89: 1e+30 | H89: 20
B90: $AG$22 | C90: A Total Award | D90: 0 | E90: 0 | F90: 20 | G90: 1e+30 | H90: 20
B91: $AG$23 | C91: C Total Award | D91: 0 | E91: -1 | F91: 0 | G91: 0 | H91: 0
B92: $AG$24 | C92: D Total Award | D92: 0 | E92: 0 | F92: 20 | G92: 1e+30 | H92: 20
B93: $AG$25 | C93: E Total Award | D93: 0 | E93: 0 | F93: 20 | G93: 1e+30 | H93: 20
B94: $AG$26 | C94: E Total Award | D94: 0 | E94: 0 | F94: 0 | G94: 1e+30 | H94: 0
B95: $K$47 | C95: L1 High Limit Flow + Slack | D95: 247.8832625 | E95: 0 | F95: 1000 | G95: 1e+30 | H95: 752.1167375
B96: $K$48 | C96: L2 High Limit Flow + Slack | D96: 158.0814169 | E96: 0 | F96: 1000 | G96: 1e+30 | H96: 841.9185831
B97: $K$49 | C97: L3 High Limit Flow + Slack | D97: -52.11673746 | E97: 0 | F97: 1000 | G97: 1e+30 | H97: 1052.116737
B98: $K$50 | C98: L4 High Limit Flow + Slack | D98: -62.11673746 | E98: 0 | F98: 1000 | G98: 1e+30 | H98: 1062.116737
B99: $K$51 | C99: L5 High Limit Flow + Slack | D99: -204.0353206 | E99: 0 | F99: 1000 | G99: 1e+30 | H99: 1204.035321
B100: $K$52 | C100: L6 High Limit Flow + Slack | D100: 195.9646794 | E100: 0 | F100: 1000 | G100: 1e+30 | H100: 804.0353206
B101: $K$53 | C101: L1 Low Limit Flow + Slack | D101: -247.8832625 | E101: 0 | F101: 1000 | G101: 1e+30 | H101: 1247.883263
B102: $K$54 | C102: L2 Low Limit Flow + Slack | D102: -158.0814169 | E102: 0 | F102: 1000 | G102: 1e+30 | H102: 1158.081417
B103: $K$55 | C103: L3 Low Limit Flow + Slack | D103: 52.11673746 | E103: 0 | F103: 1000 | G103: 1e+30 | H103: 947.8832625
B104: $K$56 | C104: L4 Low Limit Flow + Slack | D104: 62.11673746 | E104: 0 | F104: 1000 | G104: 1e+30 | H104: 937.8832625
B105: $K$57 | C105: L5 Low Limit Flow + Slack | D105: 204.0353206 | E105: 0 | F105: 1000 | G105: 1e+30 | H105: 795.9646794
B106: $K$58 | C106: L6 Low Limit Flow + Slack | D106: -195.9646794 | E106: 0 | F106: 1000 | G106: 1e+30 | H106: 1195.964679
